bitfinex-derivatives/quotes_ETHF0:USTF0_20250428
["timestamp","ask_amount","ask_price","bid_price","bid_amount"]
[1745816145610,6.48173946,1788.5,1788.4,3.802]
[1745816145807,14.78166921,1788.5,1788.4,3.802]
[1745816146007,0.78282,1787.9,1787.5,6.585]
[1745816146209,1.28491946,1787.8,1787.7,0.78287]
[1745816146510,3.68281946,1787.8,1787.7,41.58287]
[1745816147109,3.68281946,1787.8,1787.7,45.38487]
[1745816148113,3.68263683,1787.8,1787.7,45.38487]
[1745816150018,3.68226316,1787.8,1787.7,45.38487]
[1745816151819,3.68198165,1787.8,1787.7,45.38487]
[1745816152019,4.46481165,1787.8,1787.7,45.38487]
[1745816152222,4.46481155,1787.8,1787.7,45.38487]
[1745816152811,3.68198155,1787.8,1787.7,45.38487]
[1745816153824,3.68177615,1787.8,1787.7,45.38487]
[1745816158824,0.44057615,1787.8,1787.7,45.38487]
[1745816159520,4.8704,1787.9,1787.8,0.78283]
[1745816159725,5.31066589,1787.9,1787.8,0.78283]
[1745816159935,5.31066589,1787.9,1787.8,2.43293]
[1745816160138,5.31066589,1787.9,1787.8,6.23493]
[1745816162137,5.31066589,1787.9,1787.8,47.03493]
[1745816162739,5.31067844,1787.9,1787.8,47.03493]
[1745816162939,3.64807844,1787.9,1787.8,47.03493]
[1745816163633,5.29147844,1787.9,1787.8,47.03493]
[1745816164440,3.64807844,1787.9,1787.8,47.03493]
[1745816164641,3.64811762,1787.9,1787.8,47.03493]
[1745816164835,0.44031762,1787.9,1787.8,47.03493]
[1745816165143,0.44031762,1787.9,1787.8,52.03493]
[1745816165438,0.44031762,1787.9,1787.8,53.70403]
[1745816166438,0.44031762,1787.9,1787.8,48.70403]
[1745816166643,3.2282,1788.3,1788.2,0.78265]
[1745816166938,3.66858841,1788.3,1788.2,0.78265]
[1745816167133,3.66858841,1788.3,1788.2,4.58465]
[1745816168541,3.66858841,1788.3,1788.2,6.21855]
[1745816170439,3.66867764,1788.3,1788.2,6.21855]
[1745816172237,3.6687809,1788.3,1788.2,6.21855]
[1745816174143,3.2282,1788.3,1788.2,6.21855]
[1745816174445,3.66887869,1788.3,1788.2,6.21855]
[1745816175443,3.66898599,1788.3,1788.2,6.21855]
[1745816176042,3.2282,1788.3,1788.2,6.21855]
[1745816176247,3.66898599,1788.3,1788.2,6.21855]
[1745816176544,3.66898599,1788.3,1788.2,4.58465]
[1745816178045,3.66895368,1788.3,1788.2,4.58465]
[1745816180250,4.45156368,1788.3,1788.2,4.58465]
[1745816183847,4.4517323,1788.3,1788.2,4.58465]
[1745816184244,4.4517323,1788.3,1788.2,3.802]
[1745816185637,4.45189827,1788.3,1788.2,3.802]
[1745816186249,4.45189827,1788.3,1788.2,4.58465]
[1745816187149,4.45189827,1788.3,1788.2,0.78265]
[1745816188149,4.45189827,1788.3,1788.2,4.58465]
[1745816188954,4.45189827,1788.3,1788.2,3.802]
[1745816190850,4.45189827,1788.3,1788.2,2.97463]
[1745816190851,15.43203342,1788.3,1788.2,2.97463]
[1745816191044,15.43203342,1788.3,1788.2,2.5e-06]
[1745816191244,0.78279,1787.9,1787.8,40.8]
[1745816191444,8.07267827,1787.9,1787.8,40.8]
[1745816192052,9.66427827,1787.9,1787.8,40.8]
[1745816193346,9.66469049,1787.9,1787.8,40.8]
[1745816194145,9.66469049,1787.9,1787.8,42.5242]
[1745816195353,8.88174102,1787.9,1787.8,43.30703]
[1745816195555,4.08234102,1787.9,1787.8,43.30703]
[1745816196254,4.08234102,1787.9,1787.8,47.10903]
[1745816198452,0.44134102,1787.9,1787.8,47.10903]
[1745816198759,0.44134102,1787.9,1787.8,48.84513]
[1745816199051,0.44116462,1787.9,1787.8,48.84513]
[1745816202963,5.73953,1788.1,1787.9,0.78275]
[1745816203163,0.44119933,1788.0,1787.9,2.39865]
[1745816204160,0.44119933,1788.0,1787.9,6.20065]
[1745816204858,0.44121621,1788.0,1787.9,6.20065]
[1745816206864,1.22395621,1788.0,1787.9,6.20065]
[1745816207763,1.22395621,1788.0,1787.9,5.4179]
[1745816207965,2.97255621,1788.0,1787.9,3.802]
[1745816208267,0.78279,1787.9,1787.8,40.8]
[1745816208465,7.84620621,1787.9,1787.8,40.8]
[1745816208656,7.84635257,1787.9,1787.8,40.8]
[1745816208862,11.48635257,1787.9,1787.8,40.8]
[1745816209065,10.70356257,1787.9,1787.8,43.28363]
[1745816209261,10.70356257,1787.9,1787.8,47.08563]
[1745816209964,7.49576257,1787.9,1787.8,47.08563]
[1745816210565,7.49580302,1787.9,1787.8,47.08563]
[1745816211259,8.27859302,1787.9,1787.8,43.28363]
[1745816212466,8.27866226,1787.9,1787.8,43.28363]
[1745816212767,8.27865937,1787.9,1787.8,43.28363]
[1745816213867,8.27872117,1787.9,1787.8,43.28363]
[1745816214169,7.49593117,1787.9,1787.8,43.28363]
[1745816214466,7.49597497,1787.9,1787.8,43.28363]
[1745816215157,7.49597413,1787.9,1787.8,43.28363]
[1745816215862,4.08157413,1787.9,1787.8,43.28363]
[1745816216264,4.08157413,1787.9,1787.8,47.08563]
[1745816216469,4.08167048,1787.9,1787.8,47.08563]
[1745816216859,5.82377048,1787.9,1787.8,47.08563]
[1745816217058,6.60656048,1787.9,1787.8,44.602]
[1745816217271,9.81436048,1787.9,1787.8,44.602]
[1745816218169,13.61636048,1787.9,1787.8,40.8]
[1745816220171,13.61656799,1787.9,1787.8,40.8]
[1745816221567,13.61668256,1787.9,1787.8,40.8]
[1745816223566,13.6166016,1787.9,1787.8,40.8]
[1745816225372,13.61655849,1787.9,1787.8,40.8]
[1745816229273,13.61646154,1787.9,1787.8,40.8]
[1745816231181,13.61648872,1787.9,1787.8,40.8]
[1745816232269,9.81448872,1787.9,1787.8,40.8]
[1745816232470,0.44179872,1787.9,1787.8,41.58283]
[1745816232672,0.44179872,1787.9,1787.8,49.79063]
[1745816232873,0.44179872,1787.9,1787.8,51.50543]
[1745816233081,9.526,1788.2,1788.1,0.7827]
[1745816233376,9.96770112,1788.2,1788.1,0.7827]
[1745816234169,9.96770112,1788.2,1788.1,2.3811]
[1745816235075,10.75018991,1788.2,1788.1,2.3811]
[1745816235377,10.75018991,1788.2,1788.1,1.5984]
[1745816235775,12.35398991,1788.2,1788.1,1.5984]
[1745816236173,6.46598991,1788.2,1788.1,1.5984]
[1745816236879,6.46589804,1788.2,1788.1,1.5984]
[1745816238178,9.67369804,1788.2,1788.1,1.5984]
[1745816238981,8.89104804,1788.2,1788.1,1.5984]
[1745816240079,8.89104804,1788.2,1788.1,2.3811]
[1745816240678,8.89085206,1788.2,1788.1,2.3811]
[1745816242678,8.89077017,1788.2,1788.1,2.3811]
[1745816242881,9.67342017,1788.2,1788.1,2.3811]
[1745816244079,9.67342017,1788.2,1788.1,1.5984]
[1745816244478,9.67335304,1788.2,1788.1,1.5984]
[1745816250101,8.06955304,1788.2,1788.1,1.5984]
[1745816250302,8.06950448,1788.2,1788.1,1.5984]
[1745816250892,3.64885448,1788.2,1788.1,2.3811]
[1745816252600,4.43150448,1788.2,1788.1,1.5984]
[1745816252806,0.7827,1788.1,1788.0,3.802]
[1745816252995,3.72235448,1788.1,1788.0,3.802]
[1745816253196,13.79057345,1788.1,1787.2,8.4959]
[1745816253393,0.78292,1787.6,1787.5,1.7004]
[1745816253595,0.44105448,1787.6,1787.5,2.5059]
[1745816253803,0.44105448,1787.6,1787.5,44.1505]
[1745816254006,1.22409617,1787.6,1787.5,44.1505]
[1745816254204,1.22409617,1787.6,1787.5,47.9525]
[1745816254404,0.44117617,1787.6,1787.5,47.9525]
[1745816254705,1.22409617,1787.6,1787.5,47.9525]
[1745816255905,1.22406075,1787.6,1787.5,47.9525]
[1745816256707,2.83014546,1787.6,1787.5,47.9525]
[1745816258111,2.83014546,1787.6,1787.5,44.1505]
[1745816258308,2.83014546,1787.6,1787.5,42.4501]
[1745816258508,2.83014546,1787.6,1787.5,40.8]
[1745816259210,2.83014546,1787.6,1787.5,42.4555]
[1745816261413,3.68294546,1787.6,1787.5,42.4555]
[1745816262414,3.68294546,1787.6,1787.5,40.8]
[1745816262801,0.44112546,1787.6,1787.5,41.58296]
[1745816263005,0.44112546,1787.6,1787.5,43.32256]
[1745816263212,0.44112546,1787.6,1787.5,47.12456]
[1745816263915,0.4409362,1787.6,1787.5,47.12456]
[1745816264411,2.1123362,1787.6,1787.5,47.12456]
[1745816267410,3.2078,1787.9,1787.8,0.78283]
[1745816268216,3.2078,1787.9,1787.8,4.58483]
[1745816268711,3.2078,1787.9,1787.8,6.25243]
[1745816269919,3.2078,1787.9,1787.8,3.802]
[1745816270117,5.70819,1787.9,1787.8,3.802]
[1745816270312,6.49749,1787.9,1787.7,0.78286]
[1745816270512,3.35973,1787.8,1787.6,2.45048]
[1745816270817,1.5989,1787.7,1787.6,2.45048]
[1745816272813,4.77992,1787.9,1787.6,1.6676]
[1745816272814,3.9971,1787.9,1787.6,1.6676]
[1745816273009,6.4569,1787.9,1787.8,0.78283]
[1745816273210,7.23969,1787.9,1787.8,0.78283]
[1745816274117,7.23969,1787.9,1787.7,3.24274]
[1745816274417,7.23969,1787.9,1787.7,2.42834]
[1745816274418,1.7426,1787.8,1787.7,2.42834]
[1745816274918,1.7426,1787.8,1787.7,0.78284]
[1745816276813,2.52543,1787.8,1787.7,0.78284]
[1745816277022,1.7426,1787.8,1787.7,0.78284]
[1745816278916,1.7426,1787.8,1787.7,1.57954]
[1745816279218,1.7426,1787.8,1787.7,5.38154]
[1745816279414,2.17712298,1787.8,1787.7,5.38154]
[1745816279825,0.43452298,1787.8,1787.7,5.38154]
[1745816280118,0.43452298,1787.8,1787.7,6.23744]
[1745816280520,2.06972298,1787.8,1787.7,6.23744]
[1745816281719,0.43452298,1787.8,1787.7,6.23744]
[1745816282221,3.9971,1787.9,1787.8,0.78283]
[1745816282516,5.2778126,1787.9,1787.8,2.44033]
[1745816282815,3.6426126,1787.9,1787.8,2.44033]
[1745816283020,5.3559126,1787.9,1787.8,2.44033]
[1745816283218,5.3559126,1787.9,1787.8,6.24233]
[1745816284120,5.35620046,1787.9,1787.8,6.24233]
[1745816285326,0.43510046,1787.9,1787.8,6.24233]
[1745816288025,5.2353,1788.0,1787.9,0.78279]
[1745816288225,5.67024544,1788.0,1787.9,4.58479]
[1745816288623,6.45298544,1788.0,1787.9,4.58479]
[1745816289222,6.45298544,1788.0,1787.9,0.78279]
[1745816291328,5.67024544,1788.0,1787.9,0.78279]
[1745816292329,6.45298544,1788.0,1787.9,0.78279]
[1745816293733,6.45307216,1788.0,1787.9,0.78279]
[1745816294232,5.67033216,1788.0,1787.9,0.78279]
[1745816295531,6.45307216,1788.0,1787.9,0.78279]
[1745816295731,6.45317411,1788.0,1787.9,0.78279]
[1745816295929,5.67043411,1788.0,1787.9,0.78279]
[1745816296933,6.45319411,1788.0,1787.8,2.4403]
[1745816297234,2.06893411,1787.9,1787.8,2.4403]
[1745816297638,2.0690555,1787.9,1787.8,0.7828]
[1745816297935,2.8518455,1787.9,1787.8,0.7828]
[1745816298128,2.8518455,1787.9,1787.8,4.5848]
[1745816299540,2.8518868,1787.9,1787.8,4.5848]
[1745816300229,2.8518868,1787.9,1787.8,3.802]
[1745816300633,6.0596868,1787.9,1787.8,3.802]
[1745816301133,0.78284,1787.8,1787.7,0.78287]
[1745816301337,4.5558368,1787.8,1787.7,0.78287]
[1745816302335,3.7729968,1787.8,1787.7,0.78287]
[1745816307143,3.7731087,1787.8,1787.7,0.78287]
[1745816307942,4.5559387,1787.8,1787.7,0.78287]
[1745816308138,4.5559587,1787.8,1787.6,0.78291]
[1745816308442,2.0122087,1787.7,1787.6,0.78291]
[1745816308944,2.7950787,1787.7,1787.6,0.78291]
[1745816309145,2.01220187,1787.7,1787.6,0.78291]
[1745816311846,0.43540187,1787.7,1787.6,0.78291]
[1745816312052,0.43540187,1787.7,1787.6,3.31821]
[1745816312740,3.637,1788.0,1787.6,3.31821]
[1745816312741,6.8428,1788.1,1787.6,8.31821]
[1745816312938,10.94041,1788.1,1787.7,2.559]
[1745816313144,10.1577,1788.1,1788.0,0.78274]
[1745816313852,10.9404,1788.1,1788.0,0.78274]
[1745816314853,10.9404,1788.1,1787.9,2.50196]
[1745816315150,10.9404,1788.1,1788.0,0.78274]
[1745816315345,10.9404,1788.1,1788.0,2.50194]
[1745816315649,6.8428,1788.1,1788.0,2.50194]
[1745816316245,6.8428,1788.1,1788.0,6.30394]
[1745816316642,9.2566,1788.1,1788.0,6.30394]
[1745816317150,6.4956,1788.1,1788.0,6.30394]
[1745816317350,3.2078,1788.1,1788.0,6.30394]
[1745816321753,3.2078,1788.3,1788.2,0.78265]
[1745816322249,4.9494,1788.3,1788.2,4.58465]
[1745816322439,4.9494,1788.3,1788.2,6.16255]
[1745816324756,5.37737973,1788.3,1788.2,6.16255]
[1745816325763,11.15998973,1788.3,1788.2,2.92566193]
[1745816326056,11.25211975,1788.3,1788.2,2.92566193]
[1745816326253,0.78275,1788.0,1787.7,0.78285]
[1745816326442,5.25810428,1787.9,1787.7,2.45465]
[1745816326647,0.42801428,1787.8,1787.7,2.45465]
[1745816327248,0.42801428,1787.8,1787.7,6.25665]
[1745816327640,2.09201428,1787.8,1787.7,6.25665]
[1745816328055,2.09200257,1787.8,1787.7,6.25665]
[1745816330053,2.0919942,1787.8,1787.7,6.25665]
[1745816333057,2.09201137,1787.8,1787.7,6.25665]
[1745816333358,2.09201137,1787.8,1787.7,3.802]
[1745816334060,2.09201137,1787.8,1787.7,4.58487]
[1745816334262,2.09201137,1787.8,1787.7,2.49017]
[1745816334558,0.42801137,1787.8,1787.7,2.49017]
[1745816335158,0.42801137,1787.8,1787.7,6.29217]
[1745816335747,3.2078,1787.9,1787.7,6.29217]
[1745816335952,3.2078,1787.9,1787.8,2.51143]
[1745816336251,3.63554289,1787.9,1787.8,2.51143]
[1745816337260,3.63554289,1787.9,1787.8,6.31343]
[1745816337449,3.63554809,1787.9,1787.8,6.31343]
[1745816337853,5.29924673,1787.9,1787.8,6.31343]
[1745816339663,5.29945214,1787.9,1787.8,6.31343]
[1745816341163,5.29953616,1787.9,1787.8,6.31343]
[1745816342158,0.42803616,1787.9,1787.8,14.52123]
[1745816342364,3.2078,1788.5,1788.4,0.78257]
[1745816342565,6.5865,1788.5,1788.4,0.78257]
[1745816342860,5.7381,1788.5,1788.4,0.78257]
[1745816343054,2.5303,1788.5,1788.4,0.78257]
[1745816343254,2.5303,1788.5,1788.4,4.58457]
[1745816343465,1.6624,1788.5,1788.4,4.58457]
[1745816343659,0.8484,1788.6,1788.5,0.78252]
[1745816343864,2.4315,1788.6,1788.5,3.30412]
[1745816344165,2.4315,1788.6,1788.5,47.90612]
[1745816347260,1.5831,1788.6,1788.5,47.90612]
[1745816347470,4.0757,1788.7,1788.6,0.78248]
[1745816347761,5.6764,1788.7,1788.6,0.78248]
[1745816355371,5.6764,1788.7,1788.6,2.53268]
[1745816362081,0.78248,1788.6,1788.5,44.602]
[1745816362375,2.42308,1788.6,1788.5,44.602]
[1745816362974,2.42308,1788.6,1788.5,45.38452]
[1745816364777,1.6406,1788.6,1788.5,45.38452]
[1745816365277,1.6406,1788.6,1788.5,41.58252]
[1745816365474,2.42308,1788.6,1788.5,41.58252]
[1745816366278,5.63088,1788.6,1788.5,41.58252]
[1745816366480,5.63088,1788.6,1788.5,40.8]
[1745816371080,5.63088,1788.6,1788.5,41.58252]
[1745816371577,5.63088,1788.6,1788.5,40.8]
[1745816374782,5.63088,1788.6,1788.5,41.58252]
[1745816377372,5.63088,1788.6,1788.5,40.8]
[1745816378683,9.8484,1788.6,1788.2,0.78262]
[1745816378881,3.2078,1788.4,1788.3,0.78261]
[1745816379181,3.2078,1788.4,1788.3,41.58261]
[1745816379383,4.7933,1788.4,1788.3,41.58261]
[1745816379574,3.2078,1788.4,1788.3,41.58261]
[1745816380182,3.2078,1788.4,1788.3,45.38461]
[1745816380387,5.26805,1788.5,1788.3,45.38461]
[1745816380674,4.4855,1788.5,1788.4,0.78257]
[1745816380880,6.2074,1788.5,1788.4,2.48627]
[1745816381082,3.629,1788.5,1788.4,3.35907]
[1745816381281,3.629,1788.5,1788.4,7.98257]
[1745816383992,4.9297,1788.6,1788.5,0.78252]
[1745816384188,4.9297,1788.6,1788.5,2.49162]
[1745816384489,5.71218,1788.6,1788.5,2.49162]
[1745816384691,5.71218,1788.6,1788.5,1.7091]
[1745816385191,3.99021,1788.8,1788.6,0.78245]
[1745816385383,6.57121,1788.8,1788.6,0.78245]
[1745816385584,6.57121,1788.8,1788.6,2.49155]
[1745816386394,5.7888,1788.8,1788.7,0.78244]
[1745816386692,6.57119,1788.8,1788.7,2.5008]
[1745816387079,5.73809,1788.8,1788.7,2.5008]
[1745816389790,5.73809,1788.8,1788.7,3.28324]
[1745816390189,5.73809,1788.8,1788.7,7.08524]
[1745816392297,5.73809,1788.8,1788.7,3.28324]
[1745816393093,5.73809,1788.8,1788.7,7.08524]
[1745816393793,4.9557,1788.8,1788.7,7.08524]
[1745816394092,5.73809,1788.8,1788.7,7.08524]
[1745816394294,5.73809,1788.8,1788.7,3.28324]
[1745816395592,5.73809,1788.8,1788.7,2.5008]
[1745816395893,5.73809,1788.8,1788.7,3.28324]
[1745816396188,5.73809,1788.8,1788.7,7.08524]
[1745816396393,5.73809,1788.8,1788.7,6.3028]
[1745816396794,5.73809,1788.8,1788.7,7.08524]
[1745816397189,5.73809,1788.8,1788.7,3.28324]
[1745816397389,4.9557,1788.8,1788.7,3.28324]
[1745816397796,5.73809,1788.8,1788.7,3.28324]
[1745816398394,4.9557,1788.8,1788.7,3.28324]
[1745816399097,4.9557,1788.8,1788.7,7.08524]
[1745816400390,5.73809,1788.8,1788.7,6.3028]
[1745816400794,5.73809,1788.8,1788.7,3.802]
[1745816401190,0.78252,1788.5,1788.4,1.65536]
[1745816401385,3.2078,1788.6,1788.5,0.78252]
[1745816401587,1.6761,1788.7,1788.6,0.78248]
[1745816401787,7.0098,1788.8,1788.7,0.78244]
[1745816401995,7.79219,1788.8,1788.7,0.78244]
[1745816402297,4.826,1788.8,1788.7,4.58444]
[1745816402589,4.826,1788.8,1788.7,7.02244]
[1745816402796,3.2078,1788.8,1788.7,7.02244]
[1745816403399,3.99019,1788.8,1788.7,6.24]
[1745816403593,4.826,1788.8,1788.7,7.02244]
[1745816403793,3.2078,1788.8,1788.7,7.02244]
[1745816406200,3.0078,1788.8,1788.7,7.02244]
[1745816408404,3.2078,1789.0,1788.9,0.78235]
[1745816408899,3.2078,1789.0,1788.9,41.58235]
[1745816409099,3.2078,1789.0,1788.9,47.13485]
[1745816410799,8.9901,1789.0,1788.9,3.37396384]
[1745816411003,14.4532242,1789.0,1788.9,3.37396384]
[1745816411307,14.4532242,1789.0,1788.7,40.8]
[1745816411308,0.78241,1788.8,1788.7,40.8]
[1745816411497,3.99021,1788.8,1788.7,40.8]
[1745816411804,3.2078,1788.8,1788.7,41.58244]
[1745816412002,5.8235,1788.8,1788.7,41.58244]
[1745816412701,6.26491339,1788.8,1788.7,41.58244]
[1745816412903,6.26491078,1788.8,1788.7,41.58244]
[1745816414706,6.26525827,1788.8,1788.7,41.58244]
[1745816415600,7.04764827,1788.8,1788.7,40.8]
[1745816416009,6.26525827,1788.8,1788.7,41.58244]
[1745816416911,7.04764827,1788.8,1788.7,40.8]
[1745816418606,7.04761229,1788.8,1788.7,40.8]
[1745816420500,7.04760613,1788.8,1788.7,40.8]
[1745816422412,7.0476259,1788.8,1788.7,40.8]
[1745816426328,7.04772802,1788.8,1788.7,40.8]
[1745816426628,1.95613,1788.7,1788.0,3.628]
[1745816426923,3.99038,1788.4,1788.2,2.47792]
[1745816427224,2.97790461,1788.3,1788.2,2.47792]
[1745816427816,2.14850461,1788.3,1788.2,2.47792]
[1745816428118,2.14836977,1788.3,1788.2,6.27992]
[1745816430027,2.14812611,1788.3,1788.2,6.27992]
[1745816431328,2.93064846,1788.3,1788.2,6.27992]
[1745816431725,2.93064846,1788.3,1788.2,6.27995]
[1745816432027,2.93061085,1788.3,1788.2,6.27995]
[1745816432827,2.14800085,1788.3,1788.2,6.27995]
[1745816434729,2.14789864,1788.3,1788.2,6.27995]
[1745816435226,0.44119864,1788.3,1788.2,6.27995]
[1745816435928,0.44116857,1788.3,1788.2,6.27995]
[1745816437131,6.4736,1788.4,1788.3,0.78261]
[1745816437321,6.91491135,1788.4,1788.3,2.51761]
[1745816437521,6.20161135,1788.4,1788.3,2.51761]
[1745816437730,0.44131705,1788.4,1788.3,2.51761]
[1745816438030,0.44131705,1788.4,1788.3,3.31001]
[1745816438230,0.44131705,1788.4,1788.3,7.11201]
[1745816441535,0.7132,1788.5,1788.4,0.78257]
[1745816441734,0.7132,1788.5,1788.4,2.41007]
[1745816441735,1.15492391,1788.5,1788.4,2.41007]
[1745816441932,2.78752391,1788.5,1788.4,2.41007]
[1745816442635,2.07432391,1788.5,1788.4,2.41007]
[1745816442833,2.07432391,1788.5,1788.4,3.21037]
[1745816443036,2.07435911,1788.5,1788.4,3.21037]
[1745816443536,2.07440051,1788.5,1788.4,3.21037]
[1745816445335,2.07451115,1788.5,1788.4,3.21037]
[1745816447326,2.07462649,1788.5,1788.4,3.21037]
[1745816448742,2.07465023,1788.5,1788.4,3.21037]
[1745816449134,2.07464954,1788.5,1788.4,7.01237]
[1745816449638,2.85716954,1788.5,1788.4,3.802]
[1745816449837,3.66006954,1788.5,1788.4,3.802]
[1745816450334,0.7826,1788.4,1788.2,0.78264]
[1745816450535,0.44204954,1788.3,1788.2,0.78264]
[1745816450736,1.26574954,1788.3,1788.2,0.78264]
[1745816450930,2.91454954,1788.3,1788.1,42.54]
[1745816451138,4.43259159,1788.2,1788.1,41.5827]
[1745816451343,6.08139159,1788.2,1788.1,41.5827]
[1745816451736,5.29874159,1788.2,1788.1,41.5827]
[1745816452935,5.29870815,1788.2,1788.1,41.5827]
[1745816453339,5.29873446,1788.2,1788.1,43.3029]
[1745816453544,2.09093446,1788.2,1788.1,43.3029]
[1745816455645,2.87358446,1788.2,1788.1,43.3029]
[1745816456851,2.87359443,1788.2,1788.1,43.3029]
[1745816457750,2.09094443,1788.2,1788.1,43.3029]
[1745816458742,2.0908505,1788.2,1788.1,43.3029]
[1745816459450,2.8735005,1788.2,1788.1,43.3029]
[1745816459652,2.8735005,1788.2,1788.1,40.8]
[1745816459950,6.0813005,1788.2,1788.1,40.8]
[1745816460347,6.0812876,1788.2,1788.1,40.8]
[1745816460650,6.08128768,1788.2,1788.1,40.8]
[1745816460843,6.08128768,1788.2,1788.1,41.5827]
[1745816461240,5.63925,1788.2,1788.1,41.5827]
[1745816461449,6.08126257,1788.2,1788.1,41.5827]
[1745816461851,6.08123991,1788.2,1788.1,41.5827]
[1745816462054,5.29858991,1788.2,1788.1,41.5827]
[1745816462838,5.29858991,1788.2,1788.1,43.2306]
[1745816463143,2.09078991,1788.2,1788.1,43.2306]
[1745816465354,0.44198991,1788.2,1788.1,43.2306]
[1745816465553,5.888,1788.5,1788.4,0.78257]
[1745816465753,3.921,1788.6,1788.5,0.78252]
[1745816466057,0.7132,1788.6,1788.5,0.78252]
[1745816466350,4.00535,1788.9,1788.8,0.78239]
[1745816466553,4.00535,1788.9,1788.7,0.78241]
[1745816466554,2.40265,1788.9,1788.7,0.78241]
[1745816467057,3.2078,1788.8,1788.6,4.04624]
[1745816467353,3.2078,1788.8,1788.7,0.78244]
[1745816468249,3.99019,1788.8,1788.7,4.58444]
[1745816468450,3.2078,1788.8,1788.7,4.58444]
[1745816470858,3.2078,1788.8,1788.7,6.23724]
[1745816474056,3.99019,1788.8,1788.7,5.4548]
[1745816474458,3.99019,1788.8,1788.7,3.802]
[1745816475257,3.99019,1788.8,1788.6,0.78248]
[1745816475554,3.2078,1788.8,1788.4,2.43664]
[1745816475761,3.99031,1788.6,1788.4,2.43664]
[1745816475957,1.6861,1788.5,1788.4,2.43664]
[1745816477161,1.6861,1788.5,1788.4,6.23864]
[1745816477457,1.25115434,1788.5,1788.4,6.23864]
[1745816480865,2.03367434,1788.5,1788.4,3.802]
[1745816481053,2.90777434,1788.5,1788.4,3.802]
[1745816481256,2.90777434,1788.5,1788.4,0.78257]
[1745816481762,2.90777434,1788.5,1788.3,2.40498]
[1745816481959,0.43425434,1788.4,1788.3,2.40498]
[1745816482155,0.43425434,1788.4,1788.3,6.20698]
[1745816482662,4.40847,1788.7,1788.5,0.78252]
[1745816482861,0.43431333,1788.6,1788.5,0.78252]
[1745816483164,0.43431333,1788.6,1788.5,6.26502]
[1745816483461,0.43431333,1788.6,1788.5,7.06662]
[1745816486275,7.7987,1788.7,1788.6,0.78248]
[1745816486456,8.23318392,1788.7,1788.6,3.20318]
[1745816486657,7.52008392,1788.7,1788.6,3.20318]
[1745816487260,5.80748392,1788.7,1788.6,3.20318]
[1745816487558,0.43448392,1788.7,1788.6,3.20318]
[1745816488071,3.2078,1788.8,1788.7,0.78244]
[1745816488265,3.6424026,1788.8,1788.7,2.39994]
[1745816488466,5.3758026,1788.8,1788.7,2.39994]
[1745816489165,5.3758026,1788.8,1788.7,6.20194]
[1745816490770,6.1581926,1788.8,1788.7,4.58444]
[1745816491467,5.3758026,1788.8,1788.7,4.58444]
[1745816491870,5.37595866,1788.8,1788.7,4.58444]
[1745816493565,4.9412,1788.8,1788.7,4.58444]
[1745816493761,5.37613864,1788.8,1788.7,4.58444]
[1745816494369,6.15852864,1788.8,1788.7,4.58444]
[1745816494670,5.37613864,1788.8,1788.7,4.58444]
[1745816495059,6.15852864,1788.8,1788.7,4.58444]
[1745816495258,11.15852864,1788.8,1788.7,3.36001009]
[1745816495460,11.15879004,1788.8,1788.7,3.36001009]
[1745816495769,11.2508542,1788.8,1788.7,3.36001009]
[1745816496177,0.78244,1788.7,1788.6,0.78248]
[1745816496470,4.53284004,1788.7,1788.6,0.78248]
[1745816496871,4.53284004,1788.7,1788.5,2.42389]
[1745816497063,2.03920004,1788.6,1788.5,2.42389]
[1745816497265,1.604,1788.6,1788.5,2.42389]
[1745816497465,2.03935757,1788.6,1788.5,2.42389]
[1745816498061,2.03935757,1788.6,1788.5,6.22589]
[1745816498965,0.43535757,1788.6,1788.5,6.22589]
[1745816499166,1.7112,1788.7,1788.6,0.78248]
[1745816499465,2.1466157,1788.7,1788.6,3.28638]
[1745816499665,3.7411157,1788.7,1788.6,3.28638]
[1745816500173,2.8905157,1788.7,1788.6,3.28638]
[1745816500468,3.7159157,1788.7,1788.6,3.28638]
[1745816501066,3.71593105,1788.7,1788.6,3.28638]
[1745816502876,3.71594573,1788.7,1788.6,3.28638]
[1745816504077,4.49838573,1788.7,1788.6,2.5039]
[1745816504271,4.49838573,1788.7,1788.6,3.28638]
[1745816504472,4.49838573,1788.7,1788.5,1.65019]
[1745816504672,2.02270128,1788.6,1788.5,1.65019]
[1745816505174,2.02270128,1788.6,1788.5,5.45219]
[1745816505376,2.02270128,1788.6,1788.5,7.09469]
[1745816506578,2.02272203,1788.6,1788.5,7.09469]
[1745816508378,2.02277227,1788.6,1788.5,7.09469]
[1745816510284,2.02279768,1788.6,1788.5,7.09469]
[1745816510479,0.43559768,1788.6,1788.5,7.09469]
[1745816510781,6.6011,1788.9,1788.5,14.52]
[1745816510980,0.7131,1788.9,1788.8,0.78239]
[1745816511483,0.7131,1788.9,1788.8,41.58239]
[1745816511874,0.7131,1788.9,1788.8,44.00519]
[1745816512380,0.7131,1788.9,1788.8,47.80719]
[1745816512978,9.512,1789.3,1789.2,0.78222]
[1745816513284,3.624,1789.3,1789.2,0.78222]
[1745816513475,1.646,1789.3,1789.2,0.78222]
[1745816514184,1.646,1789.3,1789.2,3.802]
[1745816514374,2.42817,1789.3,1789.2,3.802]
[1745816515183,0.78222,1789.2,1789.0,2.38499]
[1745816515383,1.7181,1789.1,1789.0,2.38499]
[1745816516079,1.7181,1789.1,1789.0,6.18699]
[1745816518082,2.512,1789.1,1789.0,6.18699]
[1745816518284,3.3437,1789.1,1789.0,6.18699]
[1745816518686,3.3437,1789.1,1789.0,4.58429]
[1745816519783,3.3437,1789.1,1789.0,6.26119]
[1745816522586,3.77140977,1789.1,1789.0,6.26119]
[1745816524389,3.77136015,1789.1,1789.0,6.26119]
[1745816524789,4.55362015,1789.1,1789.0,6.26119]
[1745816524986,3.77136015,1789.1,1789.0,6.26119]